{"text_format":"3","workbook":"xlsx","n_sheets":1,"sheets":["Ģimenes ikmēneša budžets"],"read":"whole","date_system":"1900"}

{"sheet":"Ģimenes ikmēneša budžets","index":0,"n_rows":67,"n_cols":10,"rows_kept":67}
[null,"Ģimenes ikmēneša budžets"]
[null,"Kopsavilkuma tabula","Kopā\nPrognozētās izmaksas","Kopā\nFaktiskās izmaksas","Kopā\nStarpība",null,"Prognozēto ikmēneša ienākumu avots","Daudzums"]
[null,null,{"$f":"Mājoklis[[#Totals],[Prognozētās\nIzmaksas]]+Transports[[#Totals],[Prognozētās\nIzmaksas]]+Apdrošināšana[[#Totals],[Prognozētās\nIzmaksas]]+Pārtika[[#Totals],[Prognozētās\nIzmaksas]]+Bērni[[#Totals],[Prognozētās\nIzmaksas]]+Juridiskie_pakalpojumi[[#Totals],[Prognozētās\nIzmaksas]]+Ietaupījumi[[#Totals],[Prognozētās\nIzmaksas]]+Aizdevumi[[#Totals],[Prognozētās\nIzmaksas]]+Izklaide[[#Totals],[Prognozētās\nIzmaksas]]+Nodokļi[[#Totals],[Prognozētās \nIzmaksas]]+Ķermeņa_kopšana[[#Totals],[Prognozētās\nIzmaksas]]+Mājdzīvnieki[[#Totals],[Prognozētās\nIzmaksas]]+Dāvanas[[#Totals],[Prognozētās\nIzmaksas]]","v":{"v":1203,"d":"1,203 EUR"}},{"$f":"Mājoklis[[#Totals],[Faktiskais\nIzmaksas]]+Transports[[#Totals],[Faktiskais\nIzmaksas]]+Apdrošināšana[[#Totals],[Faktiskais\nIzmaksas]]+Pārtika[[#Totals],[Faktiskais\nIzmaksas]]+Bērni[[#Totals],[Faktiskais\nIzmaksas]]+Juridiskie_pakalpojumi[[#Totals],[Faktiskais\nIzmaksas]]+Ietaupījumi[[#Totals],[Faktiskais\nIzmaksas]]+Aizdevumi[[#Totals],[Faktiskais\nIzmaksas]]+Izklaide[[#Totals],[Faktiskais\nIzmaksas]]+Nodokļi[[#Totals],[Faktiskais \nIzmaksas]]+Ķermeņa_kopšana[[#Totals],[Faktiskais\nIzmaksas]]+Mājdzīvnieki[[#Totals],[Faktiskais\nIzmaksas]]+Dāvanas[[#Totals],[Faktiskais\nIzmaksas]]","v":{"v":1317,"d":"1,317 EUR"}},{"$f":"Mājoklis[[#Totals],[Starpība]]+Transports[[#Totals],[Starpība]]+Apdrošināšana[[#Totals],[Starpība]]+Pārtika[[#Totals],[Starpība]]+Bērni[[#Totals],[Starpība]]+Juridiskie_pakalpojumi[[#Totals],[Starpība]]+Ietaupījumi[[#Totals],[Starpība]]+Aizdevumi[[#Totals],[Starpība]]+Izklaide[[#Totals],[Starpība]]+Nodokļi[[#Totals],[Starpība]]+Ķermeņa_kopšana[[#Totals],[Starpība]]+Mājdzīvnieki[[#Totals],[Starpība]]+Dāvanas[[#Totals],[Starpība]]","v":{"v":-114,"d":"-114 EUR"}},null,"Ienākumi 1",{"v":4000,"d":"4,000 EUR"}]
[{"$nulls":6},"Ienākumi 2",{"v":1200,"d":"1,200 EUR"}]
[null,"Mājoklis","Prognozētās\nIzmaksas","Faktiskais\nIzmaksas","Starpība",null,"Papildu ienākumi",{"v":300,"d":"300 EUR"}]
[null,"Hipotekārais kredīts vai īres maksa",{"v":1000,"d":"1,000 EUR"},{"v":1000,"d":"1,000 EUR"},{"$f":"Mājoklis[Prognozētās\nIzmaksas]-Mājoklis[Faktiskais\nIzmaksas]","v":{"v":0,"d":"0 EUR"}},null,"Kopējie mēneša ienākumi",{"$f":"SUM(H3:H5)","v":{"v":5500,"d":"5,500 EUR"}}]
[null,"Otrs hipotekārais kredīts vai īres maksa",{"v":0,"d":"0 EUR"},{"v":0,"d":"0 EUR"},{"$f":"Mājoklis[Prognozētās\nIzmaksas]-Mājoklis[Faktiskais\nIzmaksas]","v":{"v":0,"d":"0 EUR"}}]
[null,"Tālrunis",{"v":62,"d":"62 EUR"},{"v":100,"d":"100 EUR"},{"$f":"Mājoklis[Prognozētās\nIzmaksas]-Mājoklis[Faktiskais\nIzmaksas]","v":{"v":-38,"d":"-38 EUR"}},null,"Faktisko ikmēneša ienākumu avots","Daudzums"]
[null,"Elektrība",{"v":44,"d":"44 EUR"},{"v":125,"d":"125 EUR"},{"$f":"Mājoklis[Prognozētās\nIzmaksas]-Mājoklis[Faktiskais\nIzmaksas]","v":{"v":-81,"d":"-81 EUR"}},null,"Ienākumi 1",{"v":4000,"d":"4,000 EUR"}]
[null,"Gāze",{"v":22,"d":"22 EUR"},{"v":35,"d":"35 EUR"},{"$f":"Mājoklis[Prognozētās\nIzmaksas]-Mājoklis[Faktiskais\nIzmaksas]","v":{"v":-13,"d":"-13 EUR"}},null,"Ienākumi 2",{"v":1200,"d":"1,200 EUR"}]
[null,"Ūdens un kanalizācija",{"v":8,"d":"8 EUR"},{"v":8,"d":"8 EUR"},{"$f":"Mājoklis[Prognozētās\nIzmaksas]-Mājoklis[Faktiskais\nIzmaksas]","v":{"v":0,"d":"0 EUR"}},null,"Papildu ienākumi",{"v":300,"d":"300 EUR"}]
[null,"Kabeļtelevīzija",{"v":34,"d":"34 EUR"},{"v":39,"d":"39 EUR"},{"$f":"Mājoklis[Prognozētās\nIzmaksas]-Mājoklis[Faktiskais\nIzmaksas]","v":{"v":-5,"d":"-5 EUR"}},null,"Kopējie mēneša ienākumi",{"$f":"SUM(H9:H11)","v":{"v":5500,"d":"5,500 EUR"}}]
[null,"Atkritumu izvešana",{"v":10,"d":"10 EUR"},{"v":10,"d":"10 EUR"},{"$f":"Mājoklis[Prognozētās\nIzmaksas]-Mājoklis[Faktiskais\nIzmaksas]","v":{"v":0,"d":"0 EUR"}}]
[null,"Apkope vai remonts",{"v":23,"d":"23 EUR"},{"v":0,"d":"0 EUR"},{"$f":"Mājoklis[Prognozētās\nIzmaksas]-Mājoklis[Faktiskais\nIzmaksas]","v":{"v":23,"d":"23 EUR"}},null,"Bilance","Summa"]
[null,"Materiāli",{"v":0,"d":"0 EUR"},{"v":0,"d":"0 EUR"},{"$f":"Mājoklis[Prognozētās\nIzmaksas]-Mājoklis[Faktiskais\nIzmaksas]","v":{"v":0,"d":"0 EUR"}},null,"Prognozētā bilance",{"$f":"SUM(H6-'Ģimenes ikmēneša budžets'!$C$3:$C$3)","v":{"v":4297,"d":"4,297 EUR"}}]
[null,"Citi",{"v":0,"d":"0 EUR"},{"v":0,"d":"0 EUR"},{"$f":"Mājoklis[Prognozētās\nIzmaksas]-Mājoklis[Faktiskais\nIzmaksas]","v":{"v":0,"d":"0 EUR"}},null,"Faktiskā bilance",{"$f":"SUM(H12-D3)","v":{"v":4183,"d":"4,183 EUR"}}]
[null,"Kopā",{"$f":"SUBTOTAL(109,Mājoklis[Prognozētās\nIzmaksas])","v":{"v":1203,"d":"1,203 EUR"}},{"$f":"SUBTOTAL(109,Mājoklis[Faktiskais\nIzmaksas])","v":{"v":1317,"d":"1,317 EUR"}},{"$f":"SUBTOTAL(109,Mājoklis[Starpība])","v":{"v":-114,"d":"-114 EUR"}},null,"Starpība",{"$f":"SUM(H16-H15)","v":{"v":-114,"d":"-114 EUR"}}]
[]
[null,"Transports","Prognozētās\nIzmaksas","Faktiskais\nIzmaksas","Starpība",null,"Aizdevumi","Prognozētās\nIzmaksas","Faktiskais\nIzmaksas","Starpība"]
[null,"Maksājums par transportlīdzekli 1",null,null,{"$f":"Transports[Prognozētās\nIzmaksas]-Transports[Faktiskais\nIzmaksas]","v":{"v":0,"d":"0 EUR"}},null,"Personiskie",null,null,{"$f":"Aizdevumi[Prognozētās\nIzmaksas]-Aizdevumi[Faktiskais\nIzmaksas]","v":{"v":0,"d":"0 EUR"}}]
[null,"Maksājums par transportlīdzekli 2",null,null,{"$f":"Transports[Prognozētās\nIzmaksas]-Transports[Faktiskais\nIzmaksas]","v":{"v":0,"d":"0 EUR"}},null,"Mācību",null,null,{"$f":"Aizdevumi[Prognozētās\nIzmaksas]-Aizdevumi[Faktiskais\nIzmaksas]","v":{"v":0,"d":"0 EUR"}}]
[null,"Maksa par braucienu ar autobusu/taksometru",null,null,{"$f":"Transports[Prognozētās\nIzmaksas]-Transports[Faktiskais\nIzmaksas]","v":{"v":0,"d":"0 EUR"}},null,"Kredītkarte",null,null,{"$f":"Aizdevumi[Prognozētās\nIzmaksas]-Aizdevumi[Faktiskais\nIzmaksas]","v":{"v":0,"d":"0 EUR"}}]
[null,"Apdrošināšana",null,null,{"$f":"Transports[Prognozētās\nIzmaksas]-Transports[Faktiskais\nIzmaksas]","v":{"v":0,"d":"0 EUR"}},null,"Kredītkarte",null,null,{"$f":"Aizdevumi[Prognozētās\nIzmaksas]-Aizdevumi[Faktiskais\nIzmaksas]","v":{"v":0,"d":"0 EUR"}}]
[null,"Licencēšana",null,null,{"$f":"Transports[Prognozētās\nIzmaksas]-Transports[Faktiskais\nIzmaksas]","v":{"v":0,"d":"0 EUR"}},null,"Kredītkarte",null,null,{"$f":"Aizdevumi[Prognozētās\nIzmaksas]-Aizdevumi[Faktiskais\nIzmaksas]","v":{"v":0,"d":"0 EUR"}}]
[null,"Degviela",null,null,{"$f":"Transports[Prognozētās\nIzmaksas]-Transports[Faktiskais\nIzmaksas]","v":{"v":0,"d":"0 EUR"}},null,"Citi",null,null,{"$f":"Aizdevumi[Prognozētās\nIzmaksas]-Aizdevumi[Faktiskais\nIzmaksas]","v":{"v":0,"d":"0 EUR"}}]
[null,"Uzturēšana",null,null,{"$f":"Transports[Prognozētās\nIzmaksas]-Transports[Faktiskais\nIzmaksas]","v":{"v":0,"d":"0 EUR"}},null,"Kopā",{"$f":"SUBTOTAL(109,Aizdevumi[Prognozētās\nIzmaksas])","v":{"v":0,"d":"0 EUR"}},{"$f":"SUBTOTAL(109,Aizdevumi[Faktiskais\nIzmaksas])","v":{"v":0,"d":"0 EUR"}},{"$f":"SUBTOTAL(109,Aizdevumi[Starpība])","v":{"v":0,"d":"0 EUR"}}]
[null,"Citi",null,null,{"$f":"Transports[Prognozētās\nIzmaksas]-Transports[Faktiskais\nIzmaksas]","v":{"v":0,"d":"0 EUR"}}]
[null,"Kopā",{"$f":"SUBTOTAL(109,Transports[Prognozētās\nIzmaksas])","v":{"v":0,"d":"0 EUR"}},{"$f":"SUBTOTAL(109,Transports[Faktiskais\nIzmaksas])","v":{"v":0,"d":"0 EUR"}},{"$f":"SUBTOTAL(109,Transports[Starpība])","v":{"v":0,"d":"0 EUR"}},null,"Izklaide","Prognozētās\nIzmaksas","Faktiskais\nIzmaksas","Starpība"]
[{"$nulls":6},"Video/DVD",null,null,{"$f":"Izklaide[Prognozētās\nIzmaksas]-Izklaide[Faktiskais\nIzmaksas]","v":{"v":0,"d":"0 EUR"}}]
[null,"Apdrošināšana","Prognozētās\nIzmaksas","Faktiskais\nIzmaksas","Starpība",null,"CD",null,null,{"$f":"Izklaide[Prognozētās\nIzmaksas]-Izklaide[Faktiskais\nIzmaksas]","v":{"v":0,"d":"0 EUR"}}]
[null,"Sākums",null,null,{"$f":"Apdrošināšana[Prognozētās\nIzmaksas]-Apdrošināšana[Faktiskais\nIzmaksas]","v":{"v":0,"d":"0 EUR"}},null,"Filmas",null,null,{"$f":"Izklaide[Prognozētās\nIzmaksas]-Izklaide[Faktiskais\nIzmaksas]","v":{"v":0,"d":"0 EUR"}}]
[null,"Veselība",null,null,{"$f":"Apdrošināšana[Prognozētās\nIzmaksas]-Apdrošināšana[Faktiskais\nIzmaksas]","v":{"v":0,"d":"0 EUR"}},null,"Koncerti",null,null,{"$f":"Izklaide[Prognozētās\nIzmaksas]-Izklaide[Faktiskais\nIzmaksas]","v":{"v":0,"d":"0 EUR"}}]
[null,"Dzīvība",null,null,{"$f":"Apdrošināšana[Prognozētās\nIzmaksas]-Apdrošināšana[Faktiskais\nIzmaksas]","v":{"v":0,"d":"0 EUR"}},null,"Sporta pasākumi",null,null,{"$f":"Izklaide[Prognozētās\nIzmaksas]-Izklaide[Faktiskais\nIzmaksas]","v":{"v":0,"d":"0 EUR"}}]
[null,"Citi",null,null,{"$f":"Apdrošināšana[Prognozētās\nIzmaksas]-Apdrošināšana[Faktiskais\nIzmaksas]","v":{"v":0,"d":"0 EUR"}},null,"Teātris",null,null,{"$f":"Izklaide[Prognozētās\nIzmaksas]-Izklaide[Faktiskais\nIzmaksas]","v":{"v":0,"d":"0 EUR"}}]
[null,"Kopā",{"$f":"SUBTOTAL(109,Apdrošināšana[Prognozētās\nIzmaksas])","v":{"v":0,"d":"0 EUR"}},{"$f":"SUBTOTAL(109,Apdrošināšana[Faktiskais\nIzmaksas])","v":{"v":0,"d":"0 EUR"}},{"$f":"SUBTOTAL(109,Apdrošināšana[Starpība])","v":{"v":0,"d":"0 EUR"}},null,"Citi",null,null,{"$f":"Izklaide[Prognozētās\nIzmaksas]-Izklaide[Faktiskais\nIzmaksas]","v":{"v":0,"d":"0 EUR"}}]
[{"$nulls":6},"Kopā",{"$f":"SUBTOTAL(109,Izklaide[Prognozētās\nIzmaksas])","v":{"v":0,"d":"0 EUR"}},{"$f":"SUBTOTAL(109,Izklaide[Faktiskais\nIzmaksas])","v":{"v":0,"d":"0 EUR"}},{"$f":"SUBTOTAL(109,Izklaide[Starpība])","v":{"v":0,"d":"0 EUR"}}]
[null,"Pārtika","Prognozētās\nIzmaksas","Faktiskais\nIzmaksas","Starpība"]
[null,"Pārtikas preces",null,null,{"$f":"Pārtika[Prognozētās\nIzmaksas]-Pārtika[Faktiskais\nIzmaksas]","v":{"v":0,"d":"0 EUR"}},null,"Nodokļi","Prognozētās \nIzmaksas","Faktiskais \nIzmaksas","Starpība"]
[null,"Vakariņas restorānā",null,null,{"$f":"Pārtika[Prognozētās\nIzmaksas]-Pārtika[Faktiskais\nIzmaksas]","v":{"v":0,"d":"0 EUR"}},null,"Federālie",null,null,{"$f":"Nodokļi[Prognozētās \nIzmaksas]-Nodokļi[Faktiskais \nIzmaksas]","v":{"v":0,"d":"0 EUR"}}]
[null,"Citi",null,null,{"$f":"Pārtika[Prognozētās\nIzmaksas]-Pārtika[Faktiskais\nIzmaksas]","v":{"v":0,"d":"0 EUR"}},null,"Valsts/reģions",null,null,{"$f":"Nodokļi[Prognozētās \nIzmaksas]-Nodokļi[Faktiskais \nIzmaksas]","v":{"v":0,"d":"0 EUR"}}]
[null,"Kopā",{"$f":"SUBTOTAL(109,Pārtika[Prognozētās\nIzmaksas])","v":{"v":0,"d":"0 EUR"}},{"$f":"SUBTOTAL(109,Pārtika[Faktiskais\nIzmaksas])","v":{"v":0,"d":"0 EUR"}},{"$f":"SUBTOTAL(109,Pārtika[Starpība])","v":{"v":0,"d":"0 EUR"}},null,"Vietējie",null,null,{"$f":"Nodokļi[Prognozētās \nIzmaksas]-Nodokļi[Faktiskais \nIzmaksas]","v":{"v":0,"d":"0 EUR"}}]
[{"$nulls":6},"Citi",null,null,{"$f":"Nodokļi[Prognozētās \nIzmaksas]-Nodokļi[Faktiskais \nIzmaksas]","v":{"v":0,"d":"0 EUR"}}]
[null,"Bērni","Prognozētās\nIzmaksas","Faktiskais\nIzmaksas","Starpība",null,"Kopā",{"$f":"SUBTOTAL(109,Nodokļi[Prognozētās \nIzmaksas])","v":{"v":0,"d":"0 EUR"}},{"$f":"SUBTOTAL(109,Nodokļi[Faktiskais \nIzmaksas])","v":{"v":0,"d":"0 EUR"}},{"$f":"SUBTOTAL(109,Nodokļi[Starpība])","v":{"v":0,"d":"0 EUR"}}]
[null,"Medikamenti",null,null,{"$f":"Bērni[Prognozētās\nIzmaksas]-Bērni[Faktiskais\nIzmaksas]","v":{"v":0,"d":"0 EUR"}}]
[null,"Apģērbs",null,null,{"$f":"Bērni[Prognozētās\nIzmaksas]-Bērni[Faktiskais\nIzmaksas]","v":{"v":0,"d":"0 EUR"}},null,"Personiskā higiēna","Prognozētās\nIzmaksas","Faktiskais\nIzmaksas","Starpība"]
[null,"Mācību maksa",null,null,{"$f":"Bērni[Prognozētās\nIzmaksas]-Bērni[Faktiskais\nIzmaksas]","v":{"v":0,"d":"0 EUR"}},null,"Medikamenti",null,null,{"$f":"Ķermeņa_kopšana[Prognozētās\nIzmaksas]-Ķermeņa_kopšana[Faktiskais\nIzmaksas]","v":{"v":0,"d":"0 EUR"}}]
[null,"Skolas piederumi",null,null,{"$f":"Bērni[Prognozētās\nIzmaksas]-Bērni[Faktiskais\nIzmaksas]","v":{"v":0,"d":"0 EUR"}},null,"Mati/nagi",null,null,{"$f":"Ķermeņa_kopšana[Prognozētās\nIzmaksas]-Ķermeņa_kopšana[Faktiskais\nIzmaksas]","v":{"v":0,"d":"0 EUR"}}]
[null,"Organizācijas nodevas vai maksājumi",null,null,{"$f":"Bērni[Prognozētās\nIzmaksas]-Bērni[Faktiskais\nIzmaksas]","v":{"v":0,"d":"0 EUR"}},null,"Apģērbs",null,null,{"$f":"Ķermeņa_kopšana[Prognozētās\nIzmaksas]-Ķermeņa_kopšana[Faktiskais\nIzmaksas]","v":{"v":0,"d":"0 EUR"}}]
[null,"Pusdienu nauda",null,null,{"$f":"Bērni[Prognozētās\nIzmaksas]-Bērni[Faktiskais\nIzmaksas]","v":{"v":0,"d":"0 EUR"}},null,"Ķīmiskā tīrītava",null,null,{"$f":"Ķermeņa_kopšana[Prognozētās\nIzmaksas]-Ķermeņa_kopšana[Faktiskais\nIzmaksas]","v":{"v":0,"d":"0 EUR"}}]
[null,"Bērnudārzs",null,null,{"$f":"Bērni[Prognozētās\nIzmaksas]-Bērni[Faktiskais\nIzmaksas]","v":{"v":0,"d":"0 EUR"}},null,"Sporta klubs",null,null,{"$f":"Ķermeņa_kopšana[Prognozētās\nIzmaksas]-Ķermeņa_kopšana[Faktiskais\nIzmaksas]","v":{"v":0,"d":"0 EUR"}}]
[null,"Rotaļlietas/spēles",null,null,{"$f":"Bērni[Prognozētās\nIzmaksas]-Bērni[Faktiskais\nIzmaksas]","v":{"v":0,"d":"0 EUR"}},null,"Organizācijas nodevas/maksājumi",null,null,{"$f":"Ķermeņa_kopšana[Prognozētās\nIzmaksas]-Ķermeņa_kopšana[Faktiskais\nIzmaksas]","v":{"v":0,"d":"0 EUR"}}]
[null,"Citi",null,null,{"$f":"Bērni[Prognozētās\nIzmaksas]-Bērni[Faktiskais\nIzmaksas]","v":{"v":0,"d":"0 EUR"}},null,"Citi",null,null,{"$f":"Ķermeņa_kopšana[Prognozētās\nIzmaksas]-Ķermeņa_kopšana[Faktiskais\nIzmaksas]","v":{"v":0,"d":"0 EUR"}}]
[null,"Kopā",{"$f":"SUBTOTAL(109,Bērni[Prognozētās\nIzmaksas])","v":{"v":0,"d":"0 EUR"}},{"$f":"SUBTOTAL(109,Bērni[Faktiskais\nIzmaksas])","v":{"v":0,"d":"0 EUR"}},{"$f":"SUBTOTAL(109,Bērni[Starpība])","v":{"v":0,"d":"0 EUR"}},null,"Kopā",{"$f":"SUBTOTAL(109,Ķermeņa_kopšana[Prognozētās\nIzmaksas])","v":{"v":0,"d":"0 EUR"}},{"$f":"SUBTOTAL(109,Ķermeņa_kopšana[Faktiskais\nIzmaksas])","v":{"v":0,"d":"0 EUR"}},{"$f":"SUBTOTAL(109,Ķermeņa_kopšana[Starpība])","v":{"v":0,"d":"0 EUR"}}]
[]
[null,"Juridiskā_informācija","Prognozētās\nIzmaksas","Faktiskais\nIzmaksas","Starpība",null,"Mājdzīvnieki","Prognozētās\nIzmaksas","Faktiskais\nIzmaksas","Starpība"]
[null,"Advokāts",null,null,{"$f":"Juridiskie_pakalpojumi[Prognozētās\nIzmaksas]-Juridiskie_pakalpojumi[Faktiskais\nIzmaksas]","v":{"v":0,"d":"0 EUR"}},null,"Pārtika",null,null,{"$f":"Mājdzīvnieki[Prognozētās\nIzmaksas]-Mājdzīvnieki[Faktiskais\nIzmaksas]","v":{"v":0,"d":"0 EUR"}}]
[null,"Alimenti",null,null,{"$f":"Juridiskie_pakalpojumi[Prognozētās\nIzmaksas]-Juridiskie_pakalpojumi[Faktiskais\nIzmaksas]","v":{"v":0,"d":"0 EUR"}},null,"Medikamenti",null,null,{"$f":"Mājdzīvnieki[Prognozētās\nIzmaksas]-Mājdzīvnieki[Faktiskais\nIzmaksas]","v":{"v":0,"d":"0 EUR"}}]
[null,"Maksājumi",null,null,{"$f":"Juridiskie_pakalpojumi[Prognozētās\nIzmaksas]-Juridiskie_pakalpojumi[Faktiskais\nIzmaksas]","v":{"v":0,"d":"0 EUR"}},null,"Kopšana",null,null,{"$f":"Mājdzīvnieki[Prognozētās\nIzmaksas]-Mājdzīvnieki[Faktiskais\nIzmaksas]","v":{"v":0,"d":"0 EUR"}}]
[null,"Citi",null,null,{"$f":"Juridiskie_pakalpojumi[Prognozētās\nIzmaksas]-Juridiskie_pakalpojumi[Faktiskais\nIzmaksas]","v":{"v":0,"d":"0 EUR"}},null,"Rotaļlietas",null,null,{"$f":"Mājdzīvnieki[Prognozētās\nIzmaksas]-Mājdzīvnieki[Faktiskais\nIzmaksas]","v":{"v":0,"d":"0 EUR"}}]
[null,"Kopā",{"$f":"SUBTOTAL(109,Juridiskie_pakalpojumi[Prognozētās\nIzmaksas])","v":{"v":0,"d":"0 EUR"}},{"$f":"SUBTOTAL(109,Juridiskie_pakalpojumi[Faktiskais\nIzmaksas])","v":{"v":0,"d":"0 EUR"}},{"$f":"SUBTOTAL(109,Juridiskie_pakalpojumi[Starpība])","v":{"v":0,"d":"0 EUR"}},null,"Citi",null,null,{"$f":"Mājdzīvnieki[Prognozētās\nIzmaksas]-Mājdzīvnieki[Faktiskais\nIzmaksas]","v":{"v":0,"d":"0 EUR"}}]
[{"$nulls":6},"Kopā",{"$f":"SUBTOTAL(109,Mājdzīvnieki[Prognozētās\nIzmaksas])","v":{"v":0,"d":"0 EUR"}},{"$f":"SUBTOTAL(109,Mājdzīvnieki[Faktiskais\nIzmaksas])","v":{"v":0,"d":"0 EUR"}},{"$f":"SUBTOTAL(109,Mājdzīvnieki[Starpība])","v":{"v":0,"d":"0 EUR"}}]
[null,"Uzkrājumi/ieguldījumi","Prognozētās\nIzmaksas","Faktiskais\nIzmaksas","Starpība"]
[null,"Pensijas konts",null,null,{"$f":"Ietaupījumi[Prognozētās\nIzmaksas]-Ietaupījumi[Faktiskais\nIzmaksas]","v":{"v":0,"d":"0 EUR"}},null,"Dāvanas un ziedojumi","Prognozētās\nIzmaksas","Faktiskais\nIzmaksas","Starpība"]
[null,"Ieguldījumu konts",null,null,{"$f":"Ietaupījumi[Prognozētās\nIzmaksas]-Ietaupījumi[Faktiskais\nIzmaksas]","v":{"v":0,"d":"0 EUR"}},null,"Labdarība 1",null,null,{"$f":"Dāvanas[Prognozētās\nIzmaksas]-Dāvanas[Faktiskais\nIzmaksas]","v":{"v":0,"d":"0 EUR"}}]
[null,"Augstskola",null,null,{"$f":"Ietaupījumi[Prognozētās\nIzmaksas]-Ietaupījumi[Faktiskais\nIzmaksas]","v":{"v":0,"d":"0 EUR"}},null,"Labdarība 2",null,null,{"$f":"Dāvanas[Prognozētās\nIzmaksas]-Dāvanas[Faktiskais\nIzmaksas]","v":{"v":0,"d":"0 EUR"}}]
[null,"Citi",null,null,{"$f":"Ietaupījumi[Prognozētās\nIzmaksas]-Ietaupījumi[Faktiskais\nIzmaksas]","v":{"v":0,"d":"0 EUR"}},null,"Labdarība 3",null,null,{"$f":"Dāvanas[Prognozētās\nIzmaksas]-Dāvanas[Faktiskais\nIzmaksas]","v":{"v":0,"d":"0 EUR"}}]
[null,"Kopā",{"$f":"SUBTOTAL(109,Ietaupījumi[Prognozētās\nIzmaksas])","v":{"v":0,"d":"0 EUR"}},{"$f":"SUBTOTAL(109,Ietaupījumi[Faktiskais\nIzmaksas])","v":{"v":0,"d":"0 EUR"}},{"$f":"SUBTOTAL(109,Ietaupījumi[Starpība])","v":{"v":0,"d":"0 EUR"}},null,"Kopā",{"$f":"SUBTOTAL(109,Dāvanas[Prognozētās\nIzmaksas])","v":{"v":0,"d":"0 EUR"}},{"$f":"SUBTOTAL(109,Dāvanas[Faktiskais\nIzmaksas])","v":{"v":0,"d":"0 EUR"}},{"$f":"SUBTOTAL(109,Dāvanas[Starpība])","v":{"v":0,"d":"0 EUR"}}]